[Event "Silver Lake Open-A 2018"]
[Site "Veliko Gradiste"]
[Date "2018.06.17"]
[Round "1"]
[White "Djordjevic, Vuk"]
[Black "Dudin, Gennadi"]
[Result "1-0"]
[ECO "A45"]
[WhiteElo "2399"]
[BlackElo "2215"]
[Annotator "ChessBase"]
[PlyCount "79"]
[EventDate "2018.06.17"]
[EventType "swiss"]
[EventCountry "SRB"]
[SourceTitle "playchess.com"]
[Source "ChessBase"]
[SourceQuality "1"]
[TimeControl "40/5400+30:900+30"]

1. d4 {[%emt 0:00:00]} Nf6 {[%emt 0:00:09]} 2. Bg5 {[%emt 0:00:02]} e6 {[%emt 0:00:50]} 3. e4 {[%emt 0:00:14]} d5 {[%emt 0:00:31]} 4. e5 {[%emt 0:03:35]} h6 {[%emt 0:00:07]} 5. Be3 {[%emt 0:04:33]} Nfd7 {[%emt 0:00:31]} 6. c3 {[%emt 0:05:17]} c5 {[%emt 0:00:42]} 7. f4 {[%emt 0:00:54]} Nc6 {[%emt 0:16:49]} 8. Nf3 {[%emt 0:02:48]} Be7 {[%emt 0:01:04]} 9. Bd3 {[%emt 0:03:15]} c4 {[%emt 0:10:09]} 10. Bc2 {[%emt 0:05:03]} b5 {[%emt 0:00:13]} 11. h4 {[%emt 0:06:56]} Nb6 {[%emt 0:16:47]} 12. h5 {[%emt 0:10:09]} Bd7 {[%emt 0:00:23]} 13. Nbd2 {[%emt 0:02:33]} a5 {[%emt 0:04:43]} 14. g4 {[%emt 0:08:29]} Qc7 {[%emt 0:01:42]} 15. O-O {[%emt 0:03:18]} O-O-O {[%emt 0:01:13]} 16. Rf2 {[%emt 0:02:54]} Kb7 {[%emt 0:09:44]} 17. Nf1 {[%emt 0:00:56]} Ka6 {[%emt 0:04:12]} 18. Ng3 {[%emt 0:02:48]} b4 {[%emt 0:01:42]} 19. Ne2 {[%emt 0:11:13]} Na7 {[%emt 0:02:16]} 20. Qd2 {[%emt 0:03:59]} Nb5 {[%emt 0:02:05]} 21. Qc1 {[%emt 0:03:26]} bxc3 {[%emt 0:02:56]} 22. a4 {[%emt 0:00:35]} Na7 {[%emt 0:03:26]} 23. bxc3 {[%emt 0:00:04]} Rb8 {[%emt 0:03:56]} 24. Ng3 {[%emt 0:02:52]} Rb7 {[%emt 0:02:51]} 25. f5 {[%emt 0:00:42]} Rhb8 {[%emt 0:04:27]} 26. Kh2 {[%emt 0:01:27]} Nbc8 {[%emt 0:02:14]} 27. f6 {[%emt 0:01:22]} gxf6 {[%emt 0:01:25]} 28. Bxh6 {[%emt 0:01:31]} fxe5 {[%emt 0:01:42]} 29. dxe5 {[%emt 0:00:33]} Nc6 {[%emt 0:02:17]} 30. Qf4 {[%emt 0:01:58]} f6 {[%emt 0:00:59]} 31. Bg7 {[%emt 0:01:39]} fxe5 {[%emt 0:00:11]} 32. Nxe5 {[%emt 0:00:33]} Bd6 {[%emt 0:00:11]} 33. Re1 {[%emt 0:01:39]} Be8 {[%emt 0:02:49]} 34. h6 {[%emt 0:02:05]} Qe7 {[%emt 0:00:42]} 35. Bf6 {[%emt 0:01:22]} Qf8 {[%emt 0:01:22]} 36. h7 {[%emt 0:00:40]} Nxe5 {[%emt 0:00:37]} 37. Bxe5 {[%emt 0:00:27]} Qxf4 {[%emt 0:00:18]} 38. Bxf4 {[%emt 0:00:19]} Bxf4 {[%emt 0:00:34]} 39. h8=Q {[%emt 0:00:37]} e5 {[%emt 0:00:29]} 40. Qxe8 1-0

[Event "Silver Lake Open-A 2018"]
[Site "Veliko Gradiste"]
[Date "2018.06.17"]
[Round "1"]
[White "Filev, Georgi"]
[Black "Sahin, Doga Boran"]
[Result "1-0"]
[ECO "C11"]
[WhiteElo "2390"]
[BlackElo "2129"]
[Annotator "NA"]
[PlyCount "63"]
[EventDate "2018.06.17"]
[EventType "swiss"]
[EventCountry "SRB"]
[SourceTitle "playchess.com"]
[Source "ChessBase"]
[SourceQuality "1"]
[TimeControl "40/5400+30:900+30"]

1. e4 {[%emt 0:00:00]} e6 {[%emt 0:00:02]} 2. d4 {[%emt 0:00:00]} d5 {[%emt 0:00:04]} 3. Nc3 {[%emt 0:00:00]} Nf6 {[%emt 0:00:05]} 4. e5 {[%emt 0:00:11]} Nfd7 {[%emt 0:00:04]} 5. f4 {[%emt 0:00:22]} c5 {[%emt 0:00:05]} 6. Nf3 {[%emt 0:00:09]} Nc6 {[%emt 0:00:05]} 7. Be3 {[%emt 0:00:20]} Be7 {[%emt 0:00:05]} 8. Qd2 {[%emt 0:01:22]} O-O {[%emt 0:00:19]} 9. dxc5 {[%emt 0:00:44]} Nxc5 {[%emt 0:00:09] C11: French: Classical System: 4 e5 and 4 Bg5 dxe4} 10. O-O-O {[%emt 0:01:05]} a6 {[%emt 0:00:03]} 11. Kb1 {[%emt 0:13:34]} b5 {[%emt 0:02:30]} 12. Qf2 {[%emt 0:01:39]} Na4 {[%emt 0:04:10]} 13. Nxa4 {[%emt 0:07:21]} bxa4 {[%emt 0:00:04]} 14. Nd4 {[%emt 0:00:29]} Qc7 {[%emt 0:16:09]} 15. Nxc6 {[%emt 0:04:57]} Qxc6 {[%emt 0:00:04] [#]} 16. Bd3 $146 {[%emt 0:00:35]} ({Predecessor:} 16. Bd4 Rb8 17. h4 {½-½ (31) Salem,A (2603)-Anton Guijarro,D (2614) Moscow 2015}) 16... a5 {[%emt 0:02:49]} 17. g4 {[%emt 0:05:43]} Ba6 {[%emt 0:01:04]} 18. Bxa6 {[%emt 0:02:11]} Rxa6 {[%emt 0:00:11]} 19. f5 {[%emt 0:00:09]} Rb8 {[%emt 0:04:55]} 20. Bd4 {[%emt 0:00:57]} Qb5 {[%emt 0:10:34]} 21. Rhf1 {[%emt 0:04:13]} Qe8 {[%emt 0:10:28]} 22. f6 {[%emt 0:08:06]} Bf8 {[%emt 0:05:25]} 23. fxg7 {[%emt 0:02:17]} Bxg7 {[%emt 0:00:04]} 24. Rd3 {[%emt 0:00:43]} Rc6 {[%emt 0:01:37]} 25. Rh3 {[%emt 0:07:59]} Rc4 {[%emt 0:07:13]} 26. g5 {[%emt 0:06:11]} Qe7 {[%emt 0:14:12]} 27. Qh4 {[%emt 0:13:27]} (27. c3 $142) 27... Rxb2+ {[%emt 0:01:49]} 28. Kxb2 {[%emt 0:00:16]} Qb4+ {[%emt 0:00:08]} 29. Ka1 $18 {[%emt 0:00:10]} Rxd4 {[%emt 0:00:02]} 30. Qxh7+ {[%emt 0:00:17]} Kf8 {[%emt 0:00:04]} 31. c3 {[%emt 0:04:05]} Qc4 {[%emt 0:01:54]} 32. Rhf3 {[%emt 0:02:52]} 1-0

[Event "Silver Lake Open-A 2018"]
[Site "Veliko Gradiste"]
[Date "2018.06.17"]
[Round "1"]
[White "Garabetyan, Arno"]
[Black "Karavade, Eesha"]
[Result "1/2-1/2"]
[ECO "E20"]
[WhiteElo "2141"]
[BlackElo "2399"]
[Annotator "NA"]
[PlyCount "32"]
[EventDate "2018.06.17"]
[EventType "swiss"]
[EventCountry "SRB"]
[SourceTitle "playchess.com"]
[Source "ChessBase"]
[SourceQuality "1"]
[TimeControl "40/5400+30:900+30"]

1. d4 {[%emt 0:00:00]} Nf6 {[%emt 0:00:23]} 2. c4 {[%emt 0:00:00]} e6 {[%emt 0:00:16]} 3. Nc3 {[%emt 0:00:17]} Bb4 {[%emt 0:05:40]} 4. Bd2 {[%emt 0:00:20]} d5 {[%emt 0:02:31]} 5. Nf3 {[%emt 0:03:43]} O-O {[%emt 0:00:12]} 6. e3 {[%emt 0:01:05]} b6 {[%emt 0:02:04]} 7. Rc1 {[%emt 0:01:17]} Ba6 {[%emt 0:05:44]} 8. Qa4 {[%emt 0:03:30]} c5 {[%emt 0:04:38]} 9. a3 {[%emt 0:07:00]} Bxc3 {[%emt 0:00:11]} 10. Bxc3 {[%emt 0:00:18]} Ne4 {[%emt 0:09:23]} 11. Be2 {[%emt 0:10:22]} dxc4 {[%emt 0:03:28]} 12. Bxc4 {[%emt 0:00:21]} Bxc4 {[%emt 0:01:13]} 13. Qxc4 {[%emt 0:00:10]} Nd7 {[%emt 0:02:19]} 14. O-O {[%emt 0:07:40]} Rc8 {[%emt 0:02:39]} 15. Rfd1 {[%emt 0:04:17]} Nxc3 {[%emt 0:03:25]} 16. Rxc3 {[%emt 0:08:54]} cxd4 {[%emt 0:04:25]} 1/2-1/2

[Event "Silver Lake Open-A 2018"]
[Site "Veliko Gradiste"]
[Date "2018.06.17"]
[Round "1"]
[White "Savic, Milan M"]
[Black "Kantorik, Marian"]
[Result "1-0"]
[ECO "C02"]
[WhiteElo "1853"]
[BlackElo "2260"]
[Annotator "ChessBase"]
[PlyCount "77"]
[EventDate "2018.06.17"]
[EventType "swiss"]
[EventCountry "SRB"]
[SourceTitle "playchess.com"]
[Source "ChessBase"]
[SourceQuality "1"]
[TimeControl "40/5400+30:900+30"]

1. e4 {[%emt 0:00:00]} e6 {[%emt 0:00:21]} 2. d4 {[%emt 0:00:04]} d5 {[%emt 0:00:09]} 3. e5 {[%emt 0:01:41]} c5 {[%emt 0:00:15]} 4. c3 {[%emt 0:00:02]} Qb6 {[%emt 0:00:13]} 5. Nf3 {[%emt 0:01:53]} Bd7 {[%emt 0:01:01]} 6. Be2 {[%emt 0:01:22]} Bb5 {[%emt 0:00:19]} 7. Bxb5+ {[%emt 0:07:30]} Qxb5 {[%emt 0:00:09]} 8. a4 {[%emt 0:00:21]} Qb6 {[%emt 0:06:47]} 9. O-O {[%emt 0:16:25]} cxd4 {[%emt 0:03:38]} 10. a5 {[%emt 0:02:28]} Qc7 {[%emt 0:02:45]} 11. Qa4+ {[%emt 0:11:21]} Qd7 {[%emt 0:05:16]} 12. Nxd4 {[%emt 0:07:05]} Qxa4 {[%emt 0:13:32]} 13. Rxa4 {[%emt 0:00:08]} a6 {[%emt 0:02:02]} 14. c4 {[%emt 0:02:51]} Ne7 {[%emt 0:03:06]} 15. Bg5 {[%emt 0:08:11]} Nbc6 {[%emt 0:09:11]} 16. cxd5 {[%emt 0:08:06]} Nxd4 {[%emt 0:05:50]} 17. Rxd4 {[%emt 0:00:03]} Nxd5 {[%emt 0:00:11]} 18. Rc1 {[%emt 0:11:01]} Bb4 {[%emt 0:05:25]} 19. Bd2 {[%emt 0:01:00]} Bxd2 {[%emt 0:02:52]} 20. Nxd2 {[%emt 0:00:02]} Ke7 {[%emt 0:01:11]} 21. Rdc4 {[%emt 0:04:10]} Rab8 {[%emt 0:04:29]} 22. g3 {[%emt 0:02:41]} f6 {[%emt 0:02:11]} 23. Nf3 {[%emt 0:00:39]} Rhd8 {[%emt 0:05:31]} 24. Rh4 {[%emt 0:00:42]} h6 {[%emt 0:00:56]} 25. Rg4 {[%emt 0:01:13]} Kf7 {[%emt 0:01:32]} 26. exf6 {[%emt 0:00:51]} gxf6 {[%emt 0:04:40]} 27. Rh4 {[%emt 0:00:02]} Rh8 {[%emt 0:01:18]} 28. Nd4 {[%emt 0:01:23]} h5 {[%emt 0:05:05]} 29. Rc5 {[%emt 0:01:00]} Rbc8 {[%emt 0:02:56]} 30. Rxh5 {[%emt 0:03:52]} Rxc5 {[%emt 0:00:51]} 31. Rxh8 {[%emt 0:00:01]} Rc4 {[%emt 0:00:13]} 32. Nf3 {[%emt 0:05:37]} Rb4 {[%emt 0:00:13]} 33. Rh7+ {[%emt 0:00:25]} Ke8 {[%emt 0:07:17]} 34. h4 {[%emt 0:00:10]} Rxb2 {[%emt 0:00:27]} 35. h5 {[%emt 0:00:21]} Kf8 {[%emt 0:01:10]} 36. Nd4 {[%emt 0:00:37]} b6 {[%emt 0:01:47]} 37. Nxe6+ {[%emt 0:00:21]} Kg8 {[%emt 0:00:07]} 38. Rg7+ {[%emt 0:00:17]} Kh8 {[%emt 0:00:06]} 39. h6 {[%emt 0:01:11]} 1-0

[Event "Silver Lake Open-A 2018"]
[Site "Veliko Gradiste"]
[Date "2018.06.18"]
[Round "3"]
[White "Filev, Georgi"]
[Black "Vujacic, Borivoje"]
[Result "1-0"]
[ECO "B98"]
[WhiteElo "2390"]
[BlackElo "2211"]
[Annotator "NA"]
[PlyCount "41"]
[EventDate "2018.06.17"]
[EventType "swiss"]
[EventCountry "SRB"]
[SourceTitle "playchess.com"]
[Source "ChessBase"]
[SourceQuality "1"]
[TimeControl "40/5400+30:900+30"]

1. e4 {[%emt 0:00:00]} c5 {[%emt 0:00:14]} 2. Nf3 {[%emt 0:00:00]} d6 {[%emt 0:00:14]} 3. d4 {[%emt 0:00:00]} cxd4 {[%emt 0:00:07]} 4. Nxd4 {[%emt 0:00:02]} Nf6 {[%emt 0:00:06]} 5. Nc3 {[%emt 0:00:11]} a6 {[%emt 0:00:06]} 6. Bg5 {[%emt 0:00:21]} e6 {[%emt 0:00:49]} 7. f4 {[%emt 0:00:12]} h6 {[%emt 0:00:24]} 8. Bh4 {[%emt 0:00:20]} Be7 {[%emt 0:00:13]} 9. Qf3 {[%emt 0:00:29]} Qc7 {[%emt 0:00:28]} 10. O-O-O {[%emt 0:00:21]} Nbd7 {[%emt 0:00:08]} 11. Be2 {[%emt 0:01:33]} Rb8 {[%emt 0:06:14]} 12. Qg3 {[%emt 0:06:21]} b5 {[%emt 0:22:31]} 13. e5 {[%emt 0:47:28]} g5 {[%emt 0:05:39]} 14. exf6 {[%emt 0:10:10]} gxh4 {[%emt 0:04:33]} 15. Nxe6 {[%emt 0:02:48]} hxg3 {[%emt 0:08:30]} 16. Nxc7+ {[%emt 0:00:12]} Kd8 {[%emt 0:00:22]} 17. fxe7+ {[%emt 0:00:27]} Kxc7 {[%emt 0:00:59]} 18. Nd5+ $18 {[%emt 0:00:29]} Kc6 {[%emt 0:11:21]} 19. Bf3 {[%emt 0:00:34]} Bb7 {[%emt 0:01:39]} 20. hxg3 {[%emt 0:01:53]} Nb6 {[%emt 0:03:14]} 21. Nf6+ {[%emt 0:04:39]} 1-0

[Event "Silver Lake Open-A 2018"]
[Site "Veliko Gradiste"]
[Date "2018.06.18"]
[Round "3"]
[White "Dudukovic, Nikola"]
[Black "Farkas, Sandor I"]
[Result "1-0"]
[ECO "B23"]
[WhiteElo "2385"]
[BlackElo "1977"]
[Annotator "NA"]
[PlyCount "51"]
[EventDate "2018.06.17"]
[EventType "swiss"]
[EventCountry "SRB"]
[SourceTitle "playchess.com"]
[Source "ChessBase"]
[SourceQuality "1"]
[TimeControl "40/5400+30:900+30"]

1. e4 {[%emt 0:01:35]} c5 {[%emt 0:00:15]} 2. Nc3 {[%emt 0:00:06]} e6 {[%emt 0:01:07]} 3. Nf3 {[%emt 0:00:30]} a6 {[%emt 0:00:28]} 4. g3 {[%emt 0:02:19]} Nc6 {[%emt 0:00:52]} 5. Bg2 {[%emt 0:00:17]} d6 {[%emt 0:02:34]} 6. O-O {[%emt 0:01:56]} Nf6 {[%emt 0:01:11]} 7. d4 {[%emt 0:00:42]} cxd4 {[%emt 0:00:15]} 8. Nxd4 {[%emt 0:00:05]} Bd7 {[%emt 0:01:54]} 9. Nce2 {[%emt 0:12:45]} Be7 {[%emt 0:03:44]} 10. h3 {[%emt 0:06:18]} O-O {[%emt 0:01:58]} 11. c4 Rc8 {[%emt 0:05:28]} 12. b3 {[%emt 0:07:44]} Nxd4 {[%emt 0:03:33]} 13. Nxd4 {[%emt 0:00:36]} b5 {[%emt 0:00:33]} 14. cxb5 {[%emt 0:00:30]} axb5 {[%emt 0:00:30]} 15. Qe2 {[%emt 0:00:30]} Qa5 {[%emt 0:00:30]} 16. Bd2 {[%emt 0:00:30]} Qb6 17. Be3 {[%emt 0:13:54]} Qb8 {[%emt 0:07:22]} 18. a4 {[%emt 0:00:30]} bxa4 {[%emt 0:00:30]} 19. bxa4 {[%emt 0:00:30]} d5 {[%emt 0:00:30]} 20. Rfb1 {[%emt 0:00:30]} Qa8 {[%emt 0:00:30]} 21. e5 {[%emt 0:00:30]} Ne4 {[%emt 0:00:30]} 22. Bxe4 {[%emt 0:00:30]} dxe4 {[%emt 0:00:30]} 23. a5 {[%emt 0:00:30]} Bc5 {[%emt 0:00:30]} 24. Nc2 {[%emt 0:00:30]} Qa7 {[%emt 0:00:30]} 25. a6 {[%emt 0:00:30]} Bc6 {[%emt 0:00:30]} 26. Ra5 {[%emt 0:21:59]} 1-0

[Event "Silver Lake Open-A 2018"]
[Site "Veliko Gradiste"]
[Date "2018.06.18"]
[Round "3"]
[White "Kulkarni, Chinmay"]
[Black "Kanakaris, Georgios"]
[Result "1/2-1/2"]
[ECO "B01"]
[WhiteElo "2281"]
[BlackElo "2399"]
[Annotator "NA"]
[PlyCount "51"]
[EventDate "2018.06.17"]
[EventType "swiss"]
[EventCountry "SRB"]
[SourceTitle "playchess.com"]
[Source "ChessBase"]
[SourceQuality "1"]
[TimeControl "40/5400+30:900+30"]

1. e4 d5 2. exd5 Qxd5 3. Nc3 Qd8 4. Bc4 Nf6 5. Nf3 a6 {B01: Scandinavian Defence} 6. Ne5 (6. a4 Nc6 7. h3 Bf5 8. d3 h6 9. g4 Bg6 10. Bf4 e6 11. Ne5 Nxe5 12. Bxe5 Bd6 13. Qe2 Bxe5 14. Qxe5 {1-0 (44) Kamsky,G (2677)-Bartholomew,J (2477) Reykjavik 2018}) 6... e6 7. d4 Nbd7 $146 ({Predecessor:} 7... b5 8. Be2 Bb7 9. Bf3 Nd5 10. O-O Be7 11. Nxd5 Bxd5 12. a4 b4 13. c4 {½-½ (57) Diaz,J (2164)-Seeger,W (2221) Hessen 2014}) 8. Qe2 Nb6 9. Bb3 Be7 10. Bg5 O-O 11. O-O-O Nfd5 12. Bd2 Nxc3 13. Bxc3 Bg5+ 14. Bd2 Bxd2+ 15. Qxd2 Bd7 16. h4 Ba4 17. Bxa4 Nxa4 18. h5 Nb6 19. g4 f6 20. Ng6 $15 Re8 21. Kb1 Nd5 22. Nf4 Nxf4 23. Qxf4 Qd6 24. Qf3 Qd5 25. Qf4 Qd6 26. Qf3 1/2-1/2

[Event "Silver Lake Open-A 2018"]
[Site "Veliko Gradiste"]
[Date "2018.06.18"]
[Round "3"]
[White "Avalyan, Artur"]
[Black "Tosic, Miroslav"]
[Result "1-0"]
[ECO "A40"]
[WhiteElo "2268"]
[BlackElo "2384"]
[Annotator "ChessBase"]
[PlyCount "107"]
[EventDate "2018.06.17"]
[EventType "swiss"]
[EventCountry "SRB"]
[SourceTitle "playchess.com"]
[Source "ChessBase"]
[SourceQuality "1"]
[TimeControl "40/5400+30:900+30"]

1. d4 {[%emt 0:00:00]} e6 {[%emt 0:00:56]} 2. c4 {[%emt 0:00:00]} c5 {[%emt 0:00:59]} 3. d5 {[%emt 0:00:00]} exd5 {[%emt 0:00:07]} 4. cxd5 {[%emt 0:00:02]} d6 {[%emt 0:00:08]} 5. Nc3 {[%emt 0:00:16]} a6 {[%emt 0:00:15]} 6. a4 {[%emt 0:02:58]} Ne7 {[%emt 0:00:34]} 7. e4 {[%emt 0:04:17]} Ng6 {[%emt 0:00:06]} 8. Nf3 {[%emt 0:02:43]} Be7 {[%emt 0:00:42]} 9. Be2 {[%emt 0:00:20]} O-O {[%emt 0:00:29]} 10. O-O {[%emt 0:00:05]} Nd7 {[%emt 0:04:39]} 11. Be3 {[%emt 0:01:48]} Bf6 {[%emt 0:03:09]} 12. Nd2 {[%emt 0:01:02]} Re8 {[%emt 0:00:40]} 13. Qc2 {[%emt 0:14:22]} Bd4 {[%emt 0:09:18]} 14. Nc4 {[%emt 0:02:02]} Nde5 {[%emt 0:00:58]} 15. Nxe5 {[%emt 0:13:25]} dxe5 {[%emt 0:01:45]} 16. Qd2 {[%emt 0:03:09]} Qf6 {[%emt 0:01:33]} 17. Rfd1 {[%emt 0:04:50]} Nf4 {[%emt 0:02:23]} 18. Bf1 {[%emt 0:01:05]} g5 {[%emt 0:06:22]} 19. Ne2 {[%emt 0:04:11]} Bd7 {[%emt 0:04:07]} 20. Ra3 {[%emt 0:10:08]} Kh8 {[%emt 0:07:49]} 21. b4 {[%emt 0:02:37]} b6 {[%emt 0:03:53]} 22. a5 {[%emt 0:03:14]} Bb5 {[%emt 0:04:53]} 23. Ng3 {[%emt 0:01:55]} cxb4 {[%emt 0:01:33]} 24. Qxb4 {[%emt 0:00:27]} bxa5 {[%emt 0:00:32]} 25. Qxa5 {[%emt 0:00:41]} Bxf1 {[%emt 0:01:24]} 26. Rxf1 {[%emt 0:01:47]} Reb8 {[%emt 0:00:50]} 27. Rd1 {[%emt 0:05:54]} Rb2 {[%emt 0:01:07]} 28. Ra2 {[%emt 0:07:28]} Rxa2 {[%emt 0:08:26]} 29. Qxa2 {[%emt 0:00:04]} Rb8 {[%emt 0:00:39]} 30. Nf5 {[%emt 0:01:18]} Bxe3 {[%emt 0:04:04]} 31. fxe3 {[%emt 0:00:20]} Ng6 {[%emt 0:00:19]} 32. d6 {[%emt 0:01:20]} Nh4 {[%emt 0:00:15]} 33. Qxa6 {[%emt 0:01:10]} Nxf5 {[%emt 0:00:23]} 34. exf5 {[%emt 0:03:33]} Qxf5 {[%emt 0:00:58]} 35. d7 {[%emt 0:01:06]} Rd8 {[%emt 0:00:08]} 36. Rd6 {[%emt 0:06:21]} Kg7 {[%emt 0:01:03]} 37. Qc6 {[%emt 0:00:22]} g4 {[%emt 0:04:55]} 38. Qc7 {[%emt 0:01:06]} Qg5 {[%emt 0:00:43]} 39. Kf2 {[%emt 0:00:14]} h5 {[%emt 0:03:54]} 40. Rd5 {[%emt 0:00:00]} h4 {[%emt 0:00:38]} 41. Ke2 {[%emt 0:04:10]} g3 {[%emt 0:02:34]} 42. h3 {[%emt 0:00:31]} Qh5+ {[%emt 0:00:53]} 43. Ke1 {[%emt 0:00:49]} Qg5 {[%emt 0:02:44]} 44. Qxe5+ {[%emt 0:00:29]} Qxe5 {[%emt 0:00:12]} 45. Rxe5 {[%emt 0:00:02]} Rxd7 {[%emt 0:04:30]} 46. Rh5 {[%emt 0:00:16]} Re7 {[%emt 0:00:15]} 47. Ke2 {[%emt 0:00:08]} Re4 {[%emt 0:00:14]} 48. Kf3 {[%emt 0:00:05]} Ra4 {[%emt 0:00:29]} 49. Rg5+ {[%emt 0:00:19]} Kf6 {[%emt 0:02:36]} 50. Rg4 {[%emt 0:00:06]} Ra3 {[%emt 0:00:46]} 51. Rxh4 {[%emt 0:00:04]} Ke5 {[%emt 0:00:06]} 52. Re4+ {[%emt 0:00:19]} Kd5 {[%emt 0:00:22]} 53. Re8 {[%emt 0:00:04]} f5 {[%emt 0:00:16]} 54. Kxg3 {[%emt 0:00:03]} 1-0

[Event "Silver Lake Open-A 2018"]
[Site "Veliko Gradiste"]
[Date "2018.06.18"]
[Round "3"]
[White "Krasteva, Beloslava"]
[Black "Stoyanov, Tsvetan"]
[Result "1-0"]
[ECO "A00"]
[WhiteElo "2040"]
[BlackElo "2363"]
[Annotator "NA"]
[PlyCount "97"]
[EventDate "2018.06.17"]
[EventType "swiss"]
[EventCountry "SRB"]
[SourceTitle "playchess.com"]
[Source "ChessBase"]
[SourceQuality "1"]
[TimeControl "40/5400+30:900+30"]

1. g3 {[%emt 0:00:09]} c5 {[%emt 0:00:11]} 2. Bg2 {[%emt 0:00:13]} Nc6 {[%emt 0:00:08]} 3. d3 {[%emt 0:00:28]} g6 {[%emt 0:00:08]} 4. Nc3 {[%emt 0:01:20]} Bg7 {[%emt 0:00:08]} 5. e4 {[%emt 0:00:13]} e6 {[%emt 0:00:20]} 6. Be3 {[%emt 0:01:35]} d6 {[%emt 0:00:07]} 7. Qd2 {[%emt 0:00:07]} Nge7 {[%emt 0:00:33]} 8. Bh6 {[%emt 0:02:28]} O-O {[%emt 0:00:42]} 9. h4 {[%emt 0:00:28]} Bxh6 {[%emt 0:07:42]} 10. Qxh6 {[%emt 0:00:29]} f6 {[%emt 0:00:35]} 11. Qd2 {[%emt 0:10:52]} Nd4 {[%emt 0:01:33]} 12. Nd1 {[%emt 0:01:01]} d5 {[%emt 0:00:28]} 13. Ne3 {[%emt 0:05:52]} dxe4 {[%emt 0:02:35]} 14. dxe4 {[%emt 0:00:22]} Qc7 {[%emt 0:04:08]} 15. c3 {[%emt 0:01:24]} Ndc6 {[%emt 0:00:04]} 16. Ne2 {[%emt 0:05:39]} Bd7 {[%emt 0:03:53]} 17. h5 {[%emt 0:04:35]} Rad8 {[%emt 0:01:23]} 18. hxg6 {[%emt 0:01:27]} Nxg6 {[%emt 0:00:06]} 19. Qc2 {[%emt 0:03:01]} Nce7 {[%emt 0:05:38]} 20. a4 {[%emt 0:05:36]} Bc6 {[%emt 0:02:34]} 21. Qb3 {[%emt 0:02:05]} Qd7 {[%emt 0:03:23]} 22. Bh3 {[%emt 0:06:56]} f5 {[%emt 0:00:13]} 23. Rd1 {[%emt 0:00:28]} Qc8 {[%emt 0:24:38]} 24. Rxd8 {[%emt 0:00:45]} Rxd8 {[%emt 0:00:04]} 25. Nxf5 {[%emt 0:00:16]} Nxf5 {[%emt 0:00:27]} 26. Bxf5 {[%emt 0:00:14]} Bxa4 {[%emt 0:00:13]} 27. Qxe6+ {[%emt 0:08:50]} Qxe6 {[%emt 0:01:01]} 28. Bxe6+ {[%emt 0:00:03]} Kg7 {[%emt 0:00:05]} 29. Bd5 {[%emt 0:00:09]} Ne5 {[%emt 0:00:37]} 30. Nf4 {[%emt 0:00:24]} Bd7 {[%emt 0:05:06]} 31. Rh5 {[%emt 0:04:49]} Ng6 {[%emt 0:01:31]} 32. Nd3 {[%emt 0:01:00]} b6 {[%emt 0:02:17]} 33. f4 {[%emt 0:00:32]} Re8 {[%emt 0:00:16]} 34. Kf2 {[%emt 0:00:54]} a5 {[%emt 0:00:26]} 35. Ke3 {[%emt 0:00:53]} h6 {[%emt 0:01:47]} 36. c4 {[%emt 0:03:10]} Bg4 {[%emt 0:00:19]} 37. Rh1 {[%emt 0:00:47]} Bf5 {[%emt 0:01:53]} 38. Kf3 {[%emt 0:00:44]} Bd7 {[%emt 0:00:16]} 39. g4 {[%emt 0:00:20]} a4 {[%emt 0:00:26]} 40. f5 {[%emt 0:00:00]} Ne5+ {[%emt 0:00:55]} 41. Nxe5 {[%emt 0:00:43]} Rxe5 {[%emt 0:00:01]} 42. Kf4 {[%emt 0:00:12]} Re8 {[%emt 0:00:06]} 43. e5 {[%emt 0:00:07]} b5 {[%emt 0:00:10]} 44. e6 {[%emt 0:00:15]} Bc8 {[%emt 0:00:12]} 45. cxb5 {[%emt 0:00:14]} Rd8 {[%emt 0:00:05]} 46. Ke5 {[%emt 0:00:11]} Rxd5+ {[%emt 0:00:08]} 47. Kxd5 {[%emt 0:00:09]} Bb7+ {[%emt 0:00:01]} 48. Kd6 {[%emt 0:00:10]} Bxh1 {[%emt 0:00:06]} 49. e7 {[%emt 0:00:05]} 1-0

[Event "Silver Lake Open-A 2018"]
[Site "Veliko Gradiste"]
[Date "2018.06.19"]
[Round "4"]
[White "Kanakaris, Georgios"]
[Black "Gajcin, Marina"]
[Result "1-0"]
[ECO "D77"]
[WhiteElo "2399"]
[BlackElo "2262"]
[Annotator "ChessBase"]
[PlyCount "26"]
[EventDate "2018.06.17"]
[EventType "swiss"]
[EventCountry "SRB"]
[SourceTitle "playchess.com"]
[Source "ChessBase"]
[SourceQuality "1"]
[TimeControl "40/5400+30:900+30"]

1. Nf3 {[%emt 0:00:00]} g6 {[%emt 0:02:22]} 2. d4 {[%emt 0:04:09]} Nf6 {[%emt 0:00:11]} 3. g3 {[%emt 0:02:56]} Bg7 {[%emt 0:00:17]} 4. Bg2 {[%emt 0:00:52]} O-O {[%emt 0:00:48]} 5. c4 {[%emt 0:00:09]} d5 {[%emt 0:01:01]} 6. O-O {[%emt 0:02:48]} Nc6 {[%emt 0:10:25]} 7. Ne5 {[%emt 0:11:29]} dxc4 {[%emt 0:07:34]} 8. Nxc6 {[%emt 0:00:13]} bxc6 {[%emt 0:00:06]} 9. Bxc6 {[%emt 0:03:35]} Bh3 {[%emt 0:06:20]} 10. Re1 {[%emt 0:00:07]} Rb8 {[%emt 0:00:46]} 11. Nc3 {[%emt 0:06:31]} Rb6 {[%emt 0:00:30]} 12. Bf3 {[%emt 0:00:30]} Rb8 {[%emt 0:34:03]} 13. Rb1 {[%emt 0:18:55]} e5 {[%emt 0:00:30]} 1-0

[Event "Silver Lake Open-A 2018"]
[Site "Veliko Gradiste"]
[Date "2018.06.19"]
[Round "4"]
[White "Karavade, Eesha"]
[Black "Cerovic, Danilo"]
[Result "1/2-1/2"]
[ECO "C00"]
[WhiteElo "2399"]
[BlackElo "2292"]
[Annotator "NA"]
[PlyCount "115"]
[EventDate "2018.06.17"]
[EventType "swiss"]
[EventCountry "SRB"]
[SourceTitle "playchess.com"]
[Source "ChessBase"]
[SourceQuality "1"]
[TimeControl "40/5400+30:900+30"]

1. e4 e6 2. d4 d5 3. Bd3 dxe4 4. Bxe4 Nf6 5. Bf3 c5 6. Ne2 Nc6 {C01: French: Exchange Variation} 7. Be3 cxd4 (7... Nd5 8. Bxd5 Qxd5 9. Nbc3 Qxg2 10. Rg1 Qf3 11. Nb5 Rb8 12. dxc5 Bd7 13. Nc7+ Kd8 14. Nb5 {0-1 (54) Kramnik,V (2808)-Caruana,F (2808) Stavanger 2017}) 8. Nxd4 Ne5 9. Nc3 a6 10. O-O Bd6 11. Be2 O-O $146 ({Predecessor:} 11... Qe7 12. Bg5 Bd7 13. Ne4 Bc7 14. Nxf6+ gxf6 {0-1 (34) Juhasz,A (2026)-Markos,A (2188) Hungary 2018}) 12. f4 Ng6 13. f5 exf5 14. Nxf5 Bxf5 15. Rxf5 Qc7 16. h3 Be5 17. Bd3 Rfe8 18. Qd2 Bxc3 19. bxc3 Ne4 20. Bxe4 Rxe4 21. Re1 Rae8 22. Rff1 Qc6 23. Bd4 Rxe1 24. Rxe1 Rxe1+ 25. Qxe1 f6 26. Qg3 Kf7 27. a3 h6 28. Qg4 Qd5 29. a4 Nf8 30. Kf2 Ne6 31. Be3 f5 32. Qf3 Qxf3+ 33. Kxf3 g5 34. Ke2 Ke7 35. Kd3 {[#]} Kd6 $1 36. a5 Nc5+ 37. Kc4 (37. Kd4 $17 {ist eine bessere Verteidigung.}) 37... Ne4 38. Kd4 Nc5 39. Kc4 Ne6 40. Kd3 Kd5 41. c4+ Ke5 42. g3 f4 43. Bf2 {[#]} fxg3 $1 44. Bxg3+ Nf4+ 45. Ke3 Kf5 46. Bxf4 gxf4+ 47. Kd4 Kg5 $2 ({Black should play} 47... h5 $19 48. c5 Kg6) 48. Ke4 Kh4 49. Kxf4 Kxh3 50. Kf3 Kh4 (50... Kh2 $5 51. Kf2 $8 h5 $11) 51. Kf4 $1 h5 52. c5 Kh3 53. Kf3 $1 h4 54. c3 Kh2 55. Kf2 h3 56. c4 $1 Kh1 57. Kf1 $11 Kh2 58. Kf2 1/2-1/2